bitfinex-derivatives/quotes_ETHF0:USTF0_20240915
["timestamp","ask_amount","ask_price","bid_price","bid_amount"]
[1726426728399,4.2,2379.2,2379.0,3.62803]
[1726426728804,4.2,2379.2,2379.0,3.2078]
[1726426729303,4.2,2379.1,2379.0,3.62803]
[1726426729506,4.2,2379.1,2379.0,3.2078]
[1726426729699,4.2,2379.1,2379.0,3.62803]
[1726426730000,4.2,2379.1,2379.0,3.2078]
[1726426730299,4.2,2379.1,2379.0,3.62803]
[1726426730506,4.2,2379.1,2379.0,3.2078]
[1726426730897,10.2,2379.1,2379.0,3.2078]
[1726426731296,10.2,2379.1,2379.0,3.62803]
[1726426731604,10.2,2379.1,2379.0,3.2078]
[1726426731806,10.2,2379.1,2379.0,3.62803]
[1726426732198,10.2,2379.1,2379.0,3.2078]
[1726426732598,4.2,2379.1,2379.0,3.62803]
[1726426733402,3.28,2379.7,2379.0,3.2078]
[1726426733707,4.2,2379.2,2379.1,0.42022]
[1726426737610,13.48,2379.2,2378.7,3.2078]
[1726426737915,4.2,2378.9,2378.7,3.2078]
[1726426738206,4.2,2378.9,2378.7,3.62808]
[1726426738804,4.2,2378.9,2378.8,0.42027]
[1726426740212,1.64485393,2379.6,2378.8,12.31637014]
[1726426740413,1.64485393,2379.6,2379.2,3.62798]
[1726426740414,6.0,2379.6,2379.2,3.62798]
[1726426740607,4.2,2379.2,2379.1,0.42021]
[1726426746615,4.59756881,2379.2,2379.1,0.42021]
[1726426746809,4.59755786,2379.2,2379.1,0.42021]
[1726426747007,4.2,2379.2,2379.1,0.42021]
[1726426747313,4.80780179,2379.2,2379.1,0.42021]
[1726426747507,5.44390724,2379.2,2379.1,0.42021]
[1726426748414,7.639986,2379.2,2379.1,0.42021]
[1726426748610,7.639986,2379.2,2379.1,3.62801]
[1726426748920,5.44390724,2379.2,2379.1,3.62801]
[1726426749611,0.39756921,2379.2,2379.1,16.7659929]
[1726426750718,1.64699145,2379.3,2379.2,0.4202]
[1726426751118,1.64699145,2379.3,2379.2,4.99970256]
[1726426751316,2.04482659,2379.3,2379.2,4.99970256]
[1726426751714,2.04482659,2379.3,2379.2,6.05021256]
[1726426751715,0.39783514,2379.3,2379.2,6.05021256]
[1726426751912,0.39783514,2379.3,2379.1,3.2078]
[1726426751913,10.28707204,2379.3,2379.1,3.2078]
[1726426752219,10.28707204,2379.3,2379.0,0.42022]
[1726426752220,9.24569969,2379.2,2379.0,3.2078]
[1726426752426,9.24569969,2379.1,2379.0,3.2078]
[1726426752922,15.24569969,2379.1,2379.0,3.2078]
[1726426753126,15.24569969,2379.1,2379.0,3.62803]
[1726426753419,10.49726078,2379.1,2379.0,3.62803]
[1726426753621,6.69309875,2379.1,2379.0,3.62803]
[1726426754422,6.69296166,2379.1,2379.0,3.62803]
[1726426754824,5.65877671,2379.1,2379.0,3.62803]
[1726426755217,6.69292373,2379.1,2379.0,3.62803]
[1726426755918,3.86068759,2379.1,2379.0,3.62803]
[1726426756114,2.04452803,2379.1,2379.0,8.41688364]
[1726426756314,0.39774885,2379.1,2379.0,8.41688364]
[1726426756515,1.64677918,2379.2,2379.1,0.42022]
[1726426756822,1.64677918,2379.2,2379.1,8.48907364]
[1726426756823,0.39780139,2379.2,2379.1,8.48907364]
[1726426757024,0.39780139,2379.2,2379.1,12.69227364]
[1726426757322,2.74509845,2379.7,2379.3,0.42018]
[1726426757323,1.64705448,2379.4,2379.3,0.42018]
[1726426757522,2.04487814,2379.4,2379.3,6.90798]
[1726426757724,1.85724196,2379.4,2379.3,11.75704307]
[1726426757914,1.64705448,2379.5,2379.4,0.42016]
[1726426758117,1.64705448,2379.6,2379.5,0.42015]
[1726426758320,1.85723366,2379.6,2379.5,5.24168153]
[1726426758522,2.04493646,2379.6,2379.5,0.42015]
[1726426758923,2.25533763,2379.6,2379.5,5.24168153]
[1726426759121,0.60806997,2379.6,2379.5,5.24168153]
[1726426759321,2.04513824,2379.6,2379.5,5.24168153]
[1726426759520,2.25532252,2379.6,2379.5,5.24168153]
[1726426759719,0.60806626,2379.6,2379.5,5.24168153]
[1726426759924,2.04506541,2379.6,2379.5,5.24168153]
[1726426760118,2.25524969,2379.6,2379.5,5.24168153]
[1726426760327,2.25535859,2379.6,2379.5,5.24168153]
[1726426760921,2.25534949,2379.6,2379.5,5.24168153]
[1726426761120,2.04517431,2379.6,2379.5,5.24168153]
[1726426761427,1.64729233,2379.6,2379.5,5.24168153]
[1726426761726,2.04518247,2379.6,2379.5,5.24168153]
[1726426762627,2.2553567,2379.6,2379.5,5.24168153]
[1726426762825,2.25536183,2379.6,2379.5,5.24168153]
[1726426763030,2.04518247,2379.6,2379.5,5.24168153]
[1726426763428,2.25535503,2379.6,2379.5,5.24168153]
[1726426763731,2.04518247,2379.6,2379.5,5.24168153]
[1726426764630,2.2553604,2379.6,2379.5,5.24168153]
[1726426764827,0.75457247,2379.6,2379.5,10.49445153]
[1726426765032,2.19583797,2380.1,2379.5,11.68745359]
[1726426765231,0.21014858,2380.0,2379.9,3.2078]
[1726426765434,0.21014858,2380.0,2379.9,3.83738607]
[1726426765626,6.21014858,2380.0,2379.9,3.83738607]
[1726426765931,9.46289858,2380.0,2379.9,3.83738607]
[1726426766526,9.46289858,2380.0,2379.9,3.62788]
[1726426766935,2.19583797,2380.2,2380.1,0.42004]
[1726426767132,9.46288896,2380.2,2380.1,0.42004]
[1726426767725,11.65872693,2380.2,2380.1,0.42004]
[1726426768132,9.46288896,2380.2,2380.1,0.42004]
[1726426768639,9.46288817,2380.2,2380.1,0.42004]
[1726426770723,9.25275,2380.2,2380.1,0.42004]
[1726426774332,9.25275,2380.2,2380.1,3.70004]
[1726426774538,2.19583797,2380.5,2380.4,0.41999]
[1726426774730,6.21012443,2380.5,2380.4,3.62779]
[1726426774938,9.46287443,2380.5,2380.4,3.62779]
[1726426775129,9.46287443,2380.5,2380.4,6.90779]
[1726426776238,9.25275,2380.5,2380.4,6.90779]
[1726426776937,9.64639355,2380.5,2380.4,6.90779]
[1726426778338,9.25275,2380.5,2380.4,6.90779]
[1726426778641,9.64639376,2380.5,2380.4,6.90779]
[1726426778843,9.25275,2380.5,2380.4,6.90779]
[1726426779231,2.479,2380.8,2380.7,0.41993]
[1726426779437,11.73175,2380.8,2380.7,6.90773]
[1726426779942,3.25275,2380.8,2380.7,6.90773]
[1726426780145,2.414,2381.3,2380.7,11.14369064]
[1726426780347,2.414,2381.3,2381.2,6.4878]
[1726426780348,8.414,2381.3,2381.2,6.4878]
[1726426780546,9.01772141,2381.3,2381.2,6.4878]
[1726426780849,12.27047141,2381.3,2381.2,3.2078]
[1726426781343,4.2,2381.2,2380.7,0.41992]
[1726426781546,0.60372141,2381.1,2380.7,0.41992]
[1726426781745,0.3936629,2381.0,2380.7,0.41992]
[1726426781946,7.76994483,2381.2,2380.7,0.41992]
[1726426782140,0.60375301,2381.1,2380.5,6.4878]
[1726426782341,7.76994483,2381.2,2380.7,0.41992]
[1726426782649,0.60375798,2381.1,2380.7,0.41992]
[1726426782840,0.39366505,2381.0,2380.7,0.41992]
[1726426783042,7.76994483,2381.2,2380.7,0.41992]
[1726426783244,0.60373685,2381.1,2380.8,0.41992]
[1726426783446,7.76994483,2381.2,2380.8,0.41992]
[1726426783645,0.3936299,2381.0,2380.8,0.41992]
[1726426783845,11.96994483,2381.2,2380.8,0.41992]
[1726426784045,0.60370349,2381.1,2380.8,0.41992]
[1726426784246,7.76994483,2381.2,2380.8,0.41992]
[1726426784440,0.39361641,2381.1,2380.8,0.41992]
[1726426784638,7.76994483,2381.2,2380.8,0.41992]
[1726426784842,0.60369894,2381.1,2380.8,3.62772]
[1726426785152,5.58008,2381.2,2380.9,0.4199]
[1726426785546,0.39362918,2381.1,2380.9,0.4199]
[1726426785753,9.78008,2381.2,2380.9,0.4199]
[1726426785950,0.39362725,2381.1,2380.9,0.4199]
[1726426786154,9.78008,2381.2,2380.9,0.4199]
[1726426786355,4.2,2381.1,2380.9,0.4199]
[1726426786651,5.58008,2381.2,2381.0,0.41988]
[1726426787062,5.58008,2381.2,2380.9,0.41989]
[1726426787553,5.58008,2381.2,2380.9,0.4199]
[1726426787961,5.58008,2381.2,2381.0,0.41988]
[1726426788750,5.58008,2381.2,2380.8,3.2078]
[1726426788751,4.2,2381.1,2380.8,3.2078]
[1726426788956,4.2,2381.1,2381.0,0.41988]
[1726426789258,5.58008,2381.1,2381.0,0.41987]
[1726426790560,2.482,2381.4,2380.9,3.28]
[1726426790747,8.06208,2381.4,2381.3,3.62763]
[1726426792558,5.58008,2381.4,2381.3,3.62763]
[1726426793147,4.8142,2381.9,2381.7,0.41975]
[1726426793348,10.39428,2381.9,2381.6,3.69977]
[1726426793749,8.02688,2381.9,2381.7,0.41975]
[1726426793948,0.39363573,2381.8,2381.7,0.41975]
[1726426794154,8.02688,2381.9,2381.8,0.41974]
[1726426794359,8.42047119,2381.9,2381.8,0.41974]
[1726426794561,8.42047119,2381.9,2381.8,3.69974]
[1726426794862,8.42047119,2381.9,2381.8,3.28]
[1726426795262,8.42047119,2381.9,2381.7,3.28]
[1726426795560,8.02688,2381.9,2381.7,3.28]
[1726426795752,0.39360852,2381.8,2381.7,3.28]
[1726426795953,5.97368852,2381.8,2381.7,6.4878]
[1726426796153,5.97368852,2381.8,2381.7,6.90756]
[1726426796759,5.58008,2381.8,2381.7,6.90756]
[1726426797260,5.58008,2381.8,2381.7,3.28]
[1726426798359,5.58008,2381.8,2381.4,3.28]
[1726426798547,5.58008,2381.8,2381.5,0.41978]
[1726426798863,5.58008,2381.8,2381.4,3.6998]
[1726426799358,5.58008,2381.8,2381.6,0.41977]
[1726426799550,5.58008,2381.8,2381.4,3.28]
[1726426799752,5.58008,2381.8,2381.5,0.41979]
[1726426799959,5.58008,2381.8,2381.6,0.41977]
[1726426800348,5.58008,2381.8,2381.7,0.41976]
[1726426800559,5.97370972,2381.8,2381.6,3.28]
[1726426800756,0.21001436,2381.7,2381.6,3.69978]
[1726426801261,0.21001436,2381.7,2381.4,3.6998]
[1726426801262,12.57198879,2381.7,2381.4,3.6998]
[1726426801456,0.60364396,2381.6,2381.4,3.6998]
[1726426801661,0.39366454,2381.5,2381.2,6.4878]
[1726426801965,2.39989906,2381.5,2381.2,6.90764]
[1726426802163,7.97997906,2381.5,2381.2,6.90764]
[1726426802459,0.21003423,2381.4,2381.2,6.4878]
[1726426802657,2.18986483,2381.3,2381.1,0.41985]
[1726426802858,6.59909906,2381.3,2381.1,0.41986]
[1726426803064,2.39989906,2381.2,2381.1,0.41986]
[1726426803359,2.39989906,2381.2,2381.1,6.90766]
[1726426803563,7.97997906,2381.2,2381.1,6.4878]
[1726426803864,7.97997906,2381.2,2381.1,3.28]
[1726426804054,7.97860437,2381.2,2381.1,3.28]
[1726426804252,7.97863366,2381.2,2381.1,3.69986]
[1726426804464,5.79014352,2381.2,2381.1,3.28]
[1726426804661,7.97889712,2381.2,2381.1,3.28]
[1726426804862,7.97889712,2381.2,2380.5,3.28]
[1726426804863,4.2,2381.1,2380.5,3.28]
[1726426805064,8.31615449,2381.2,2381.0,3.28]
[1726426805359,5.25374821,2381.1,2381.0,3.28]
[1726426805755,10.83382821,2381.1,2381.0,3.28]
[1726426805961,21.03382821,2381.1,2380.6,3.28]
[1726426806161,2.18953383,2380.8,2380.6,3.28]
[1726426806667,7.76961383,2380.8,2380.6,3.28]
[1726426806864,0.21007326,2380.7,2380.6,3.28]
[1726426807165,2.39960709,2380.7,2380.6,3.28]
[1726426807372,7.97968709,2380.7,2380.6,3.28]
[1726426807856,19.61869326,2380.7,2380.2,3.28]
[1726426808056,19.61869326,2380.7,2380.4,0.41999]
[1726426808057,2.19091507,2380.5,2380.4,0.41999]
[1726426808263,2.19091507,2380.5,2380.4,3.28]
[1726426808264,2.40098833,2380.5,2380.4,3.28]
[1726426808467,7.77099507,2380.5,2380.4,3.69999]
[1726426808655,7.98106833,2380.5,2380.4,3.69999]
[1726426808862,5.58008,2380.5,2380.4,3.69999]
[1726426809061,5.58008,2380.5,2380.4,3.28]
[1726426809475,5.9738461,2380.5,2380.4,3.28]
[1726426810071,5.9738461,2380.5,2380.0,4.149]
[1726426810072,16.1746461,2380.5,2380.0,3.28]
[1726426810259,5.20881606,2380.4,2380.2,3.28]
[1726426810457,0.3937661,2380.3,2380.2,3.28]
[1726426810859,5.9738461,2380.3,2380.2,3.28]
[1726426811061,5.58008,2380.3,2380.2,3.28]
[1726426811262,5.97382756,2380.3,2380.2,3.28]
[1726426814661,10.38557816,2380.3,2380.0,3.28]
[1726426814863,5.58008,2380.3,2380.0,3.28]
[1726426815071,0.39373049,2380.2,2380.0,3.28]
[1726426815265,5.58008,2380.3,2380.0,3.28]
[1726426815266,0.39373049,2380.1,2380.0,3.28]
[1726426815459,0.39373049,2380.1,2379.7,3.28]
[1726426815660,0.39373049,2380.0,2379.7,3.28]
[1726426815863,5.58008,2380.1,2380.0,0.42006]
[1726426816368,4.132,2380.8,2380.0,0.42006]
[1726426816369,2.19091507,2380.8,2380.7,0.41993]
[1726426816558,6.18391883,2380.8,2380.7,3.69993]
[1726426816755,6.18391878,2380.8,2380.7,3.69993]
[1726426816970,10.38391878,2380.8,2380.5,3.69996]
[1726426817173,0.60383878,2380.7,2380.6,0.41995]
[1726426817763,10.38471878,2380.7,2380.6,0.41995]
[1726426817969,5.97381158,2380.7,2380.6,0.41995]
[1726426818567,10.17461158,2380.7,2380.6,0.41995]
[1726426818873,10.17462473,2380.7,2380.6,0.41995]
[1726426819164,9.99098279,2380.7,2380.6,0.41995]
[1726426819356,10.17463486,2380.7,2380.6,0.41995]
[1726426819561,9.78088,2380.7,2380.6,0.41995]
[1726426819868,9.78088,2380.7,2380.5,3.69996]
[1726426820065,5.58008,2380.7,2380.5,3.69996]
[1726426820266,0.60386039,2380.6,2380.3,3.28]
[1726426820470,8.78788,2380.7,2380.3,3.28]
[1726426820669,0.21011947,2380.6,2380.3,3.7]
[1726426820874,0.39378518,2380.5,2380.2,0.42001]
[1726426821070,0.21011947,2380.6,2380.1,7.429]
[1726426821071,5.58008,2380.6,2380.1,3.70003]
[1726426821276,5.58008,2380.6,2380.2,0.42002]
[1726426821277,0.60394154,2380.5,2380.2,0.42002]
[1726426821473,5.58008,2380.6,2380.2,0.42002]
[1726426821474,0.39380651,2380.4,2380.2,0.42002]
[1726426821770,1.09658448,2380.3,2380.1,3.70003]
[1726426821961,1.09658448,2380.3,2379.7,4.149]
[1726426822162,1.09658448,2380.3,2379.4,3.28]
[1726426822163,1.09658448,2379.8,2379.4,3.28]
[1726426822460,1.09658448,2380.0,2379.8,0.42009]
[1726426822669,1.09658448,2379.9,2379.7,3.28]
[1726426822968,1.09658448,2379.9,2379.5,3.70014]
[1726426822969,1.09658448,2379.8,2379.5,3.70014]
[1726426823169,6.67666448,2379.8,2379.5,3.28]
[1726426823367,5.58008,2379.8,2379.5,3.70014]
[1726426823670,6.67666448,2379.8,2379.3,4.21147806]
[1726426823874,1.09658448,2379.6,2379.3,4.63164806]
[1726426824476,3.2078,2379.4,2379.3,0.93147806]
[1726426824862,20.08766448,2379.4,2379.3,0.93147806]
[1726426825270,18.99108,2379.4,2379.3,0.93147806]
[1726426825466,15.78328,2379.4,2379.3,0.93147806]
[1726426826168,9.78328,2379.4,2379.3,0.93147806]
[1726426826573,5.58008,2379.4,2379.3,0.93147806]
[1726426826772,9.78328,2379.4,2379.3,0.93147806]
[1726426828085,9.78328,2379.4,2379.1,3.70021]
[1726426828270,5.58008,2379.4,2379.1,3.70021]
[1726426829867,5.58008,2379.4,2379.1,3.28]
[1726426830264,5.58008,2379.4,2379.1,3.70021]
[1726426832369,5.58008,2379.4,2379.3,3.70018]
[1726426832571,1.09658448,2380.1,2379.7,0.42011]
[1726426832774,6.67666448,2380.1,2379.9,3.28]
[1726426833069,5.58008,2380.1,2379.6,3.28]
[1726426833269,6.67666448,2380.1,2379.5,0.42013]
[1726426833474,6.67666448,2380.1,2379.7,3.28]
[1726426833672,5.58008,2380.1,2379.9,3.28]
[1726426833874,4.2016,2380.0,2379.7,3.28]
[1726426834073,5.58008,2380.1,2379.7,3.28]
[1726426834976,5.58008,2380.1,2379.2,3.2078]
[1726426834977,0.42008,2379.9,2378.9,3.2078]
[1726426835175,4.2016,2380.0,2379.4,3.28]
[1726426835176,3.2078,2379.8,2379.4,3.28]
[1726426835372,8.78788,2379.8,2379.4,3.28]
[1726426835780,12.99028,2379.8,2379.4,3.28]
[1726426836381,8.78788,2379.8,2379.5,0.42015]
[1726426836571,8.78788,2379.8,2379.4,3.70016]
[1726426837283,8.78788,2379.8,2379.2,3.2078]
[1726426837284,8.78788,2379.8,2379.7,0.42011]
[1726426837579,3.2078,2380.3,2380.1,0.42004]
[1726426837973,8.78788,2380.3,2380.0,3.70005]
[1726426839282,8.78788,2380.3,2380.1,0.42004]
[1726426840077,8.78788,2380.3,2380.0,3.28]
[1726426840283,8.78788,2380.3,2380.0,0.42006]
[1726426841178,9.88446448,2380.3,2380.0,0.42006]
[1726426841579,8.78788,2380.3,2380.0,0.42006]
[1726426842187,9.88446448,2380.3,2380.1,0.42003]
[1726426842384,5.58008,2380.3,2380.2,3.70002]
[1726426844281,5.86438448,2380.6,2380.4,0.41997]
[1726426844481,11.44446448,2380.6,2380.4,0.41997]
[1726426844881,11.44446448,2380.6,2380.3,0.42]
[1726426846187,1.09658448,2380.5,2380.3,0.42]
[1726426846585,6.67666448,2380.5,2380.3,0.42]
[1726426847593,0.39377895,2380.4,2380.3,0.42]
[1726426847988,6.67666448,2380.5,2380.4,0.41999]
[1726426847989,1.09658448,2380.5,2380.4,0.41999]
[1726426848293,2.4854,2380.6,2380.5,0.41997]
[1726426848590,8.45925138,2380.6,2380.4,3.69998]
[1726426848791,1.48919183,2380.5,2380.4,3.69998]
[1726426849185,7.06927183,2380.5,2380.4,3.69998]
[1726426849387,7.06927183,2380.5,2380.4,0.41998]
[1726426850191,6.67550045,2380.5,2380.4,0.41998]
[1726426850386,7.06926721,2380.5,2380.4,0.41998]
[1726426850691,7.06926647,2380.5,2380.4,0.41998]
[1726426850892,5.97384602,2380.5,2380.4,0.41998]
[1726426851893,7.61631259,2380.5,2380.3,0.42]
[1726426852095,1.49009092,2380.4,2380.3,0.42]
[1726426852594,7.07017092,2380.4,2380.3,0.42]
[1726426853386,6.18396021,2380.4,2380.3,0.42]
[1726426853585,6.18396184,2380.4,2380.3,0.42]
[1726426854692,6.18396806,2380.4,2380.3,0.42]
[1726426854895,5.79019419,2380.4,2380.3,0.42]
[1726426855385,1.6450729,2380.4,2380.3,0.42]
[1726426855585,2.19091507,2380.6,2380.3,4.2008]
[1726426855785,7.77099507,2380.6,2380.5,3.69997]
[1726426855988,8.37483851,2380.6,2380.5,3.69997]
[1726426856597,7.98109818,2380.6,2380.5,3.69997]
[1726426856790,8.37483656,2380.6,2380.5,3.69997]
[1726426858291,7.98109818,2380.6,2380.5,3.69997]
[1726426858891,8.37484349,2380.6,2380.5,3.69997]
[1726426859295,7.98109818,2380.6,2380.5,3.69997]
[1726426859597,8.37485361,2380.6,2380.5,3.69997]
[1726426860084,7.98109818,2380.6,2380.5,3.69997]
[1726426860291,8.37485885,2380.6,2380.5,3.69997]
[1726426860590,6.57770748,2380.6,2380.5,3.69997]
[1726426861193,8.22215495,2380.6,2380.5,3.69997]
[1726426861395,7.4638157,2380.6,2380.5,3.69997]
[1726426862093,7.4638157,2380.6,2380.4,3.28]
[1726426862293,7.85757145,2380.6,2380.5,0.41997]
[1726426862596,7.85758396,2380.6,2380.5,0.41997]
[1726426862793,7.85758396,2380.6,2380.4,3.28]
[1726426862794,7.4638157,2380.6,2380.4,3.28]
[1726426862996,0.78752437,2380.6,2380.5,3.69997]
[1726426863391,0.78752437,2380.6,2380.5,7.90077]
[1726426865097,0.78752437,2380.6,2380.5,3.69997]
[1726426865605,0.78752437,2380.6,2380.5,7.90077]
[1726426865801,0.78752437,2380.6,2380.5,13.42387985]
[1726426866290,1.09621133,2381.2,2380.5,9.72390985]
[1726426866491,1.09621133,2381.1,2380.5,6.4878]
[1726426866691,1.09621133,2381.0,2380.5,3.28]
[1726426866900,1.09621133,2380.8,2380.5,3.28]
[1726426867097,1.09621133,2380.9,2380.8,0.41992]
[1726426867294,5.58008,2380.9,2380.8,0.41992]
[1726426867695,5.58008,2380.9,2380.7,3.69992]
[1726426868299,6.67629133,2380.9,2380.7,3.69992]
[1726426868507,6.67629133,2380.9,2380.8,0.41992]
[1726426869200,5.58008,2380.9,2380.8,0.41992]
[1726426869399,1.09621133,2381.1,2381.0,0.41988]
[1726426869612,6.67629133,2381.1,2381.0,0.41988]
[1726426870393,5.58008,2381.1,2381.0,0.41988]
[1726426870602,6.67629133,2381.1,2381.0,0.41988]
[1726426870897,5.58008,2381.1,2381.0,0.41988]
[1726426873304,1.09496624,2381.4,2381.3,0.41983]
[1726426873501,1.64444747,2381.5,2381.3,0.41981]
[1726426873502,1.09496624,2381.5,2381.3,0.41981]
[1726426873702,5.58008,2381.5,2381.3,0.41983]
[1726426873906,6.67504624,2381.5,2381.3,0.41983]
[1726426874105,5.58008,2381.5,2381.3,0.41983]
[1726426874311,5.58008,2381.5,2381.1,3.2078]
[1726426874312,5.58008,2381.5,2381.4,0.41981]
[1726426874609,5.58008,2381.5,2381.4,3.69981]
[1726426875000,5.58008,2381.5,2381.4,6.90761]
[1726426875305,1.09469467,2381.8,2381.4,10.687]
[1726426875612,5.58008,2381.8,2381.7,0.41976]
[1726426876207,5.58008,2381.8,2381.6,3.28]
[1726426876402,5.58008,2381.8,2381.4,3.28]
[1726426876806,5.58008,2381.8,2381.6,3.28]
[1726426876997,5.58008,2381.8,2381.7,3.69976]
[1726426878708,1.09469467,2382.1,2381.7,3.28]
[1726426878896,1.09469467,2382.1,2382.0,3.69969]
[1726426878897,5.58008,2382.1,2382.0,3.69969]
[1726426879100,5.58008,2382.1,2382.0,3.28]
[1726426879696,5.58008,2382.1,2382.0,3.69971]
[1726426879898,5.58008,2382.1,2382.0,3.28]
[1726426880708,5.58008,2382.1,2382.0,3.69971]
[1726426882507,3.50559467,2382.6,2382.0,7.4784]
[1726426882711,3.50559467,2382.6,2381.9,3.2078]
[1726426882712,7.99098,2382.6,2382.5,3.28]
[1726426883413,7.99098,2382.6,2382.4,0.41963]
[1726426883414,8.20093189,2382.6,2382.4,0.41963]
[1726426883613,8.20093189,2382.6,2382.5,3.28]
[1726426883614,9.62962869,2382.6,2382.5,3.28]
[1726426883814,10.39183411,2382.6,2382.4,3.28]
[1726426884015,1.09246849,2382.5,2382.4,3.28]
[1726426884314,1.09250527,2382.5,2382.4,3.69963]
[1726426884511,6.67258527,2382.5,2382.4,3.69963]
[1726426884708,5.58008,2382.5,2382.4,3.28]
[1726426885010,6.67258527,2382.5,2382.4,3.28]
[1726426886106,5.58008,2382.5,2382.4,3.28]
[1726426886305,6.67258527,2382.5,2382.4,3.28]
[1726426886504,5.58008,2382.5,2382.4,3.28]
[1726426887308,5.58008,2382.5,2382.4,3.69963]
[1726426887509,2.4109,2382.6,2382.4,7.4776]
[1726426887711,2.4109,2382.6,2382.5,3.28]
[1726426888310,7.99098,2382.6,2382.5,3.28]
[1726426888709,5.58008,2382.6,2382.5,3.28]
[1726426888918,2.19091507,2383.0,2382.5,7.4768]
[1726426888919,1.09250527,2382.9,2382.5,7.4768]
[1726426889209,1.09250527,2382.9,2382.8,3.28]
[1726426889420,6.67258527,2382.9,2382.8,3.28]
[1726426891016,6.67258527,2382.9,2382.7,3.28]
[1726426891428,5.58008,2382.9,2382.7,3.28]
[1726426891612,1.09250527,2383.2,2382.8,11.10416]
[1726426891917,5.58008,2383.2,2383.1,3.28]
[1726426892128,8.78788,2383.2,2382.6,4.45765514]
[1726426892414,8.78788,2383.2,2382.5,2.3469]
[1726426892415,5.58008,2383.2,2382.9,3.28]
[1726426893009,9.77608,2383.2,2382.5,3.69961]
[1726426893209,2.4039,2383.1,2382.5,3.69961]
[1726426893418,3.2078,2383.0,2382.7,3.28]
[1726426893720,2.4937,2382.9,2382.7,3.28]
[1726426894123,8.07378,2382.9,2382.7,3.28]
[1726426896223,7.4046,2382.8,2382.4,3.69963]
[1726426896412,7.4046,2382.8,2382.4,3.28]
[1726426896413,3.2078,2382.8,2382.4,3.28]
[1726426896615,8.78788,2382.8,2382.4,3.69963]
[1726426896815,5.58008,2382.8,2382.4,3.69963]
[1726426897017,5.58008,2382.8,2382.6,3.28]
[1726426897217,5.58008,2382.8,2382.4,3.2078]
[1726426897512,5.58008,2382.8,2382.4,3.28]
[1726426897715,5.58008,2382.8,2382.6,3.28]
[1726426898719,6.67258527,2382.8,2382.6,3.28]
[1726426899321,6.67258527,2382.8,2382.6,3.69959]
[1726426899718,5.58008,2382.8,2382.7,3.62738]
[1726426899913,3.59870527,2383.0,2382.9,0.41955]
[1726426900222,3.59870527,2383.0,2382.7,3.2078]
[1726426900223,9.17878527,2383.0,2382.8,3.69955]
[1726426900416,6.67258527,2383.0,2382.8,3.69955]
[1726426900622,5.58008,2383.0,2382.8,3.69955]
[1726426901325,6.67258527,2383.0,2382.8,3.28]
[1726426902731,3.55090527,2383.4,2382.9,9.05469731]
[1726426903024,11.40838527,2383.4,2383.1,3.28]
[1726426903231,1.09250527,2383.3,2383.1,3.28]
[1726426903619,6.67258527,2383.3,2383.1,3.28]
[1726426903921,6.67258527,2383.3,2382.9,3.28]
[1726426904130,1.09250527,2383.2,2382.9,3.28]
[1726426904625,1.09250527,2383.1,2382.9,3.28]
[1726426904927,1.09250527,2383.1,2382.7,6.4878]
[1726426905127,6.67258527,2383.1,2382.7,6.4878]
[1726426905625,6.67258527,2383.1,2382.7,6.90738]
[1726426905927,6.67258527,2383.1,2382.7,6.4878]
[1726426905928,5.58008,2383.1,2382.7,6.4878]
[1726426906317,5.58008,2383.1,2382.9,3.28]
[1726426906824,5.58008,2383.1,2382.9,3.69954]
[1726426907132,5.58008,2383.1,2382.9,3.28]
[1726426908519,5.58008,2383.1,2382.9,3.69955]
[1726426908919,5.58008,2383.1,2382.9,3.28]
[1726426913323,1.09250527,2383.3,2383.0,0.41952]
[1726426913519,5.58008,2383.3,2383.2,3.69949]
[1726426914426,5.58008,2383.3,2383.2,3.28]
[1726426914626,5.58008,2383.3,2383.2,3.69949]
[1726426915033,5.58008,2383.3,2383.2,3.28]
[1726426916230,5.58008,2383.3,2383.0,5.4773]
[1726426916231,5.58008,2383.3,2383.0,0.41952]
[1726426916418,5.58008,2383.3,2383.0,3.69951]
[1726426916619,1.09250527,2383.4,2383.3,0.41948]
[1726426916821,1.09250527,2383.6,2383.3,3.2078]
[1726426917131,5.58008,2383.6,2383.4,3.28]
[1726426917432,5.58008,2383.6,2383.5,0.41944]
[1726426917824,5.58008,2383.6,2383.4,3.69945]
[1726426918533,5.58008,2383.6,2383.4,3.28]
[1726426918825,5.58008,2383.6,2383.4,3.69944]
[1726426919032,5.58008,2383.6,2383.4,3.69945]
[1726426919229,5.58008,2383.6,2383.5,0.41944]
[1726426919633,1.09250527,2383.7,2383.6,0.41942]
[1726426919826,1.09250527,2383.8,2383.6,6.90722]
[1726426920129,2.02329323,2383.7,2383.4,3.49124868]
[1726426920330,1.09452014,2383.7,2383.6,3.28]
[1726426920523,7.05910222,2383.7,2383.6,3.28]
[1726426920719,1.09452014,2383.7,2383.6,3.28]
[1726426920928,7.3917018,2383.7,2383.6,3.28]
[1726426921134,10.67500601,2383.7,2383.4,0.20870313]
[1726426921325,18.77892222,2383.6,2382.8,3.28]
[1726426921525,2.73780015,2383.0,2382.8,3.28]
[1726426921727,4.93400684,2382.9,2382.8,3.28]
[1726426922136,10.51408684,2382.9,2382.7,3.2078]
[1726426922432,2.19735992,2382.8,2382.7,3.2078]
[1726426922635,4.64635992,2382.8,2382.7,3.2078]
[1726426922840,20.42323992,2382.8,2382.7,2.5498]
[1726426923028,16.9589001,2382.8,2382.4,3.28]
[1726426923234,8.38808628,2382.7,2382.4,3.28]
[1726426923531,5.48600671,2382.6,2382.4,3.28]
[1726426923731,1.81277503,2382.5,2382.4,3.28]
[1726426923940,0.38469803,2382.5,2382.4,3.28]
[1726426924145,2.16058782,2382.5,2382.4,3.28]